Cogmind - Beta 13 @@@ ROGUE MODE // 2024.05.18 @ 14:27:25 Player: Faunarr Result: Destroyed by Y-45 Defender with Heavy Assault Rifle Performance ------------- Evolutions (2) 1000 Regions Visited (5) 1000 Robots Destroyed (26) 130 Value Destroyed (986) 986 Prototype IDs (3) 60 Alien Tech Used (0) 0 Bonus (200) 200 TOTAL SCORE: 3376 Bonus ------- Entered Garrisons 200 Cogmind --------- Core Integrity 0/550 Matter 47/300 Energy 100/100 System Corruption 0% Temperature Cool (9) Movement Core (50) Location -8/Garrison Parts ------- > --- POWER (1) -------- (None) > --- PROPULSION (4) --- (None) > --- UTILITY (4) ------ (None) > --- WEAPON (2) ------- (None) > --- INVENTORY (5) ---- Authchip [R/Combat] Authchip [R/Combat] Authchip [R/Combat] Autogun Datajack Peak State ------------ > --- POWER ------------ Ion Engine > --- PROPULSION ------- Light Treads Light Treads Light Treads Wheel > --- UTILITY ---------- Cargo Storage Unit Targeting Computer Light Armor Plating > --- WEAPON ----------- Minigun Minigun > --- INVENTORY -------- Ion Engine Ion Engine Light Ion Engine Light Treads Improved Heat Sink Medium Matter Pod Authchip [R/NC] Authchip [R/Combat] Authchip [R/Combat] Authchip [R/Combat] Advanced Beam Rifle Assault Rifle Heavy Assault Rifle Autogun Autogun Minigun Mini Grenade Launcher Improved Grenade Launcher Improved Grenade Launcher Improved Grenade Launcher Datajack [Rating: 20] Favorites ----------- Power Ion Engine Engine Ion Engine Propulsion Light Treads Treads Light Treads Wheel Wheel Utility Cargo Storage Unit Device Trap Scanner Storage Cargo Storage Unit Processor Targeting Computer Protection Light Armor Plating Weapon Minigun Energy Gun Medium Laser Ballistic Gun Minigun Launcher Improved Grenade Launcher Special Melee Weapon Datajack Build | -11 -10 -9 -9 -8 -8 ------- Run | Yrd Mat Mat Min Mat Gar Slots Evolved 4 | . . 2 . 2 . Power . | . . . . . . Propulsion 2 | . . . . 2 . Utility 2 | . . 2 . . . Weapon . | . . . . . . Parts Attached 42 | 7 6 10 6 2 11 Power 6 | 1 1 . 2 . 2 Engine 6 | 1 1 . 2 . 2 Core . | . . . . . . Reactor . | . . . . . . Propulsion 11 | 2 2 2 1 2 2 Treads 8 | 1 1 1 1 2 2 Leg . | . . . . . . Wheel 3 | 1 1 1 . . . Hover . | . . . . . . Flight . | . . . . . . Utility 7 | 2 . 3 1 . 1 Device 2 | 1 . 1 . . . Storage 2 | 1 . 1 . . . Processor 1 | . . 1 . . . Hackware . | . . . . . . Protection 2 | . . . 1 . 1 Artifact . | . . . . . . Weapon 18 | 2 3 5 2 . 6 Energy Gun 6 | 2 2 2 . . . Energy Cannon . | . . . . . . Ballistic Gun 7 | . . 3 1 . 3 Ballistic Cannon . | . . . . . . Launcher 4 | . . . 1 . 3 Special Weapon . | . . . . . . Impact Weapon . | . . . . . . Slashing Weapon . | . . . . . . Piercing Weapon . | . . . . . . Special Melee Weapon 1 | . 1 . . . . Unidentified Prototypes 1 | . . 1 . . . Parts Lost 17 | . . 3 1 . 13 Power 3 | . . . . . 3 Propulsion 7 | . . 2 . . 5 Utility 4 | . . 1 1 . 2 Weapon 3 | . . . . . 3 Highest Loss Streak 8 | . . 3 1 . 8 To Critical Strikes . | . . . . . . Average Slot Usage (%) 80 | . 99 85 82 83 64 Engine 10 | . 14 11 11 9 7 Treads 13 | . 14 10 11 20 16 Wheel 8 | . 13 10 11 9 2 Device 5 | . 14 9 3 . . Storage 10 | . 14 11 11 9 7 Processor 9 | . . 10 11 9 7 Protection 2 | . . . 1 9 6 Energy Gun 5 | . 26 7 . . . Ballistic Gun 15 | . . 14 21 18 14 Naked Turns 64 | . . . . . 64 Heaviest Build 154 | 15 15 153 154 154 154 Greatest Support 40 | 20 20 10 20 10 40 Greatest Overweight (x) 15 | 1 1 15 15 15 15 Average Overweight (x) 7 | . . 14 10 15 3 Largest Inventory Capacity 30 | 8 8 30 30 30 30 Average Capacity 26 | 6 8 29 30 30 26 Most Carried 21 | 4 8 10 14 17 21 Average Carried 10 | 2 5 8 12 12 16 Final Capacity 30 | 8 8 30 30 30 5 Final Carried 17 | 4 8 10 13 17 5 Class Distribution -------------------- 85% | Hauler-Mutant 14% | Mutant Dominant Class ---------------- Mutant | -10/Materials Hauler-Mutant | -9/Materials Hauler-Mutant | -9/Mines Hauler-Mutant | -8/Materials Hauler-Mutant | -8/Garrison Resources | -11 -10 -9 -9 -8 -8 ----------- Run | Yrd Mat Mat Min Mat Gar Matter Collected 840 | 270 . 147 405 . 18 Remotely . | . . . . . . Salvage Created 743 | 99 . 81 429 51 83 Parts 51 | 5 . 6 24 7 9 Haulers Intercepted . | . . . . . . Recyclers Shooed . | . . . . . . Parts Field Recycled . | . . . . . . Retrieved Matter . | . . . . . . Parts Self-Destructed . | . . . . . . Prevented . | . . . . . . Kills | -11 -10 -9 -9 -8 -8 ------- Run | Yrd Mat Mat Min Mat Gar Combat Hostiles Destroyed 24 | . . 5 10 1 8 Guns 18 | . . 5 10 1 2 AOE 6 | . . . . . 6 Classes Destroyed 7 | 2 . 2 1 1 1 Tunneler 1 | 1 . . . . . Recycler 1 | 1 . . . . . Swarmer 7 | . . 4 . . 3 Grunt 11 | . . 1 8 . 2 Brawler 2 | . . . 2 . . Duelist 1 | . . . . . 1 Sentry 3 | . . . . 1 2 Best Kill Streak 8 | 1 . 4 8 1 5 Combat Bots Only 8 | . . 4 8 1 5 Max Kills in Single Turn 2 | 1 . 1 2 1 2 Gunslinging 1 | . . . 1 . . Exploded 2 | . . . . . 2 Melee . | . . . . . . Uniques/NPCs Destroyed . | . . . . . . Combat | -11 -10 -9 -9 -8 -8 -------- Run | Yrd Mat Mat Min Mat Gar Hostile Shots Fired 266 | . . 55 32 4 175 Missed 95 | . . 15 8 . 72 Damage Taken 2736 | . . 532 307 59 1838 Core 725 | . . 124 43 . 558 Absorbed by Shields . | . . . . . . Core Remaining (%) 86 | 100 100 . 58 . . Volleys Fired 61 | 4 1 14 22 2 18 Largest 2 | 2 1 2 2 2 2 Hottest 115 | 100 50 115 55 50 61 Shots Fired 114 | 5 1 28 44 4 32 Gun 104 | 5 1 28 42 4 24 Cannon . | . . . . . . Launcher 10 | . . . 2 . 8 Special . | . . . . . . Kinetic 78 | . . 8 42 4 24 Thermal 26 | 5 1 20 . . . Explosive 10 | . . . 2 . 8 Electromagnetic . | . . . . . . Robot Hit Streak 13 | 4 . 4 8 3 13 Robot Miss Streak 7 | . 1 4 4 1 7 Penetration Max . | . . . . . . Secondary Targets 3 | . . 1 2 . . Max Gunslinging Chain 1 | . . 1 1 . . Shots Hit Robots 66 | 4 . 14 27 3 18 Core Hits 43 | 3 . 6 14 2 18 Critical Kills . | . . . . . . Critical Parts Destroyed 1 | . . . 1 . . Critical Strikes 3 | 1 . 1 1 . . Burn 2 | 1 . 1 . . . Destroy 1 | . . . 1 . . Melee Attacks . | . . . . . . Impact . | . . . . . . Slashing . | . . . . . . Piercing . | . . . . . . Sneak Attacks . | . . . . . . Combat Hostiles . | . . . . . . Follow-up Attacks . | . . . . . . Damage Inflicted 2013 | 50 . 213 580 50 1120 Guns 971 | 50 . 213 453 50 205 Cannons . | . . . . . . Explosions 1020 | . . . 127 . 893 Melee . | . . . . . . Ramming 22 | . . . . . 22 Kinetic 794 | . . 86 453 50 205 Thermal 177 | 50 . 127 . . . Explosive 1020 | . . . 127 . 893 Electromagnetic . | . . . . . . Impact . | . . . . . . Slashing . | . . . . . . Piercing . | . . . . . . Highest Corruption . | . . . . . . Average Corruption . | . . . . . . Corruption Purged . | . . . . . . Corruption Blocked . | . . . . . . Overload Shots . | . . . . . . Overflow Damage 101 | . . . . . 101 Projectiles . | . . . . . . Explosions 101 | . . . . . 101 Melee . | . . . . . . Knockbacks . | . . . . . . Impact . | . . . . . . Kinetic . | . . . . . . Secondary . | . . . . . . Self-Inflicted Damage 266 | . . . 11 . 255 Shots 7 | . . . 1 . 6 Rammed 6 | . . . . . 6 Targets Rammed 6 | . . . . . 6 Kicked . | . . . . . . Crushed . | . . . . . . Highest Temperature 474 | 39 10 474 32 13 80 Average Temperature 86 | 24 7 207 10 7 24 Received Heat Transfer 744 | . . 18 165 18 543 Effects 3 | . . 3 . . . Shutdowns 1 | . . 1 . . . Matter Decay 1 | . . 1 . . . Damage (minor) 1 | . . 1 . . . Siege Activations . | . . . . . . Robots Corrupted . | . . . . . . Combat Hostiles . | . . . . . . Parts Fried . | . . . . . . Impact Corruptions . | . . . . . . Robots Melted . | . . . . . . Combat Hostiles . | . . . . . . Parts Melted 2 | 2 . . . . . Heat Transferred 629 | 222 . 407 . . . Parts Sabotaged . | . . . . . . Parts Stolen . | . . . . . . Parts Stripped . | . . . . . . Power Chain Reactions . | . . . . . . Alert | -11 -10 -9 -9 -8 -8 ------- Run | Yrd Mat Mat Min Mat Gar Peak Influence 316 | 10 30 91 280 154 316 Initial 109 | . 6 12 26 109 100 Average 118 | 4 19 42 227 126 210 Maximum Alert Level 1 | . . . 1 . 1 Low Security (%) 74 | 100 100 100 27 100 45 Level 1 25 | . . . 72 . 54 Level 2 . | . . . . . . Level 3 . | . . . . . . Level 4 . | . . . . . . Level 5 . | . . . . . . High Security . | . . . . . . Max Security . | . . . . . . Squads Dispatched . | . . . . . . Investigation . | . . . . . . Extermination . | . . . . . . Reinforcement . | . . . . . . Assault . | . . . . . . Garrison . | . . . . . . Intercept . | . . . . . . Searches Triggered . | . . . . . . Construction Impeded . | . . . . . . Haulers Reinforced . | . . . . . . Active Scanning Responses . | . . . . . . Cargo Convoy Interrupts . | . . . . . . Stealth | -11 -10 -9 -9 -8 -8 --------- Run | Yrd Mat Mat Min Mat Gar Distress Signals . | . . . . . . Communications Jammed . | . . . . . . Distress Signals . | . . . . . . Times Spotted 38 | . 2 9 10 1 16 Peak Tracking Total 8 | . 3 4 4 1 8 Tactical Retreats 3 | . . 2 . . 1 Traps | -11 -10 -9 -9 -8 -8 ------- Run | Yrd Mat Mat Min Mat Gar Traps Triggered 2 | . 2 . . . . Indirectly . | . . . . . . Trap Hack Attempts . | . . . . . . Triggered . | . . . . . . Disarmed . | . . . . . . Reprogrammed . | . . . . . . Reused . | . . . . . . Traps Extracted . | . . . . . . Installed . | . . . . . . Triggered . | . . . . . . Machines | -11 -10 -9 -9 -8 -8 ---------- Run | Yrd Mat Mat Min Mat Gar Machines Disabled 2 | . . . 1 . 1 Max in Single Turn 1 | . . . 1 . 1 Garrison Relay 1 | . . . . . 1 Machines Repaired . | . . . . . . Machines Dismantled . | . . . . . . Machines Sabotaged . | . . . . . . Overloaded Fab Kills . | . . . . . . Hacking | -11 -10 -9 -9 -8 -8 --------- Run | Yrd Mat Mat Min Mat Gar Machines Accessed 7 | . 3 2 . 1 1 Terminals 6 | . 3 2 . . 1 Fabricators . | . . . . . . Repair Stations . | . . . . . . Recycling Units . | . . . . . . Scanalyzers . | . . . . . . Garrison Access 1 | . . . . 1 . Total Hacks 16 | . 5 8 . 2 1 Successful 10 | . 4 5 . 1 . Failed 6 | . 1 3 . 1 1 Catastrophic 3 | . . 1 . 1 1 Database Lockouts . | . . . . . . Manual 14 | . 4 8 . 1 1 Terminals 14 | . 5 8 . . 1 Fabricators . | . . . . . . Repair Stations . | . . . . . . Recycling Units . | . . . . . . Scanalyzers . | . . . . . . Garrison Access 2 | . . . . 2 . Terminal Hacks 1 | . 1 . . . . Prototype ID Bank 1 | . 1 . . . . Fabricator Hacks . | . . . . . . Repair Station Hacks . | . . . . . . Recycling Unit Hacks . | . . . . . . Scanalyzer . | . . . . . . Garrison Access Hacks 1 | . . . . 1 . Unlock Access 1 | . . . . 1 . Unauthorized Hacks 8 | . 3 5 . . . Terminals 8 | . 3 5 . . . Track 2 | . . 2 . . . Botnet 5 | . 3 2 . . . Operators 1 | . . 1 . . . Fabricators . | . . . . . . Repair Stations . | . . . . . . Recycling Units . | . . . . . . Scanalyzers . | . . . . . . Garrison Access . | . . . . . . Data Cores Recovered . | . . . . . . Used . | . . . . . . Hacking Detections 7 | . 3 2 . 1 1 Full Trace Events . | . . . . . . Feedback Events . | . . . . . . Feedback Blocked . | . . . . . . Robot Schematics Acquired . | . . . . . . Robots Built . | . . . . . . Authchips . | . . . . . . Time . | . . . . . . Total Robot Build Rating . | . . . . . . Part Schematics Acquired . | . . . . . . Parts Built . | . . . . . . Authchips . | . . . . . . Time . | . . . . . . Total Part Build Rating . | . . . . . . Parts Repaired . | . . . . . . Time . | . . . . . . Parts Recycled . | . . . . . . Recycled Matter . | . . . . . . Retrieved Matter . | . . . . . . Retrieved Components . | . . . . . . Parts Scanalyzed . | . . . . . . Part Schematics Acquired . | . . . . . . Parts Damaged . | . . . . . . Bothacking | -11 -10 -9 -9 -8 -8 ------------ Run | Yrd Mat Mat Min Mat Gar Used RIF Installer . | . . . . . . Robots Hacked . | . . . . . . Non-combat . | . . . . . . Combat . | . . . . . . Robot Hacks Applied . | . . . . . . Relay Couplers Released 3 | . . . . . 3 Machine Destruction 3 | . . . . . 3 Fabnet Peak Effective % . | . . . . . . Robots Rewired . | . . . . . . Allies Hacked . | . . . . . . Hacks Repelled . | . . . . . . Allies | -11 -10 -9 -9 -8 -8 -------- Run | Yrd Mat Mat Min Mat Gar Total Allies . | . . . . . . Largest Group . | . . . . . . Highest-Rated Group . | . . . . . . Highest-Rated Ally . | . . . . . . Total Orders . | . . . . . . Ally Attacks . | . . . . . . Total Damage . | . . . . . . Kills . | . . . . . . Allies Corrupted . | . . . . . . Allies Melted . | . . . . . . Intel | -11 -10 -9 -9 -8 -8 ------- Run | Yrd Mat Mat Min Mat Gar Robot Analysis Total . | . . . . . . Derelict Logs Recovered . | . . . . . . Drone Launches . | . . . . . . Drone Recoveries . | . . . . . . Exploration | -11 -10 -9 -9 -8 -8 ------------- Run | Yrd Mat Mat Min Mat Gar Turns Passed 1945 | 80 158 736 359 181 431 Spaces Moved 736 | 59 150 225 57 56 189 Core 110 | 2 . . . . 108 Treads 85 | 6 2 . 30 . 47 Legs . | . . . . . . Wheels 541 | 51 148 225 27 56 34 Hover . | . . . . . . Flight . | . . . . . . Fastest Speed 50 | 50 80 95 305 305 50 Average Speed 230 | 97 95 297 523 305 187 Slowest Speed 720 | 160 160 305 720 305 720 Overloaded Moves . | . . . . . . Propulsion Burnouts . | . . . . . . Robots Hopped . | . . . . . . Cave-ins Triggered . | . . . . . . Exploration Rate (%) 19 | 4 34 24 16 7 33 Regions Visited 5 Branch Regions 1 Pre-discovered Areas . | . . . . . . Known Exits Taken 1 | . . . . 1 . Unknown Exits Taken 4 | 1 1 1 1 . . Scrap Searched . | . . . . . . Spaces Dug . | . . . . . . Terrain Destroyed 64 | . . . 20 . 44 Melee . | . . . . . . Projectile . | . . . . . . AOE 64 | . . . 20 . 44 Terrain Rammed . | . . . . . . Walls Destroyed . | . . . . . . Machines Disabled . | . . . . . . Actions | -11 -10 -9 -9 -8 -8 --------- Run | Yrd Mat Mat Min Mat Gar Total 884 | 73 160 267 85 64 235 Wait 13 | . 1 8 . . 4 Move 731 | 58 149 224 56 55 189 Hop . | . . . . . . Pick Up 26 | 4 3 6 1 5 7 Fast Attach 18 | 7 4 4 . 1 2 Attach 12 | . . 4 1 1 6 Detach 1 | . . 1 . . . Swap 12 | . 2 2 5 . 3 Drop 4 | . . 4 . . . Fire 61 | 4 1 14 22 2 18 Melee . | . . . . . . Ram 6 | . . . . . 6 Kick . | . . . . . . Crush . | . . . . . . Escape Stasis . | . . . . . . Rewire . | . . . . . . Trap . | . . . . . . Miscellaneous . | . . . . . . Route ------- -11/Scrapyard -10/Materials (discovered 3 exits: *Mat / [*Min x2]) -9/Materials -9/Mines -8/Materials -8/Garrison History --------- Turn | Location | Event 14 | -11/Scrapyard | Discovered new exit (range 13) 81 | -11/Scrapyard | Entered Materials 81 | -10/Materials | Discovered new exit (range 7) 131 | -10/Materials | Discovered new exit (range 11) 220 | -10/Materials | Discovered new exit (range 16) 239 | -10/Materials | Entered another Materials area 239 | -9/Materials | Evolved 2 slots: Utility x2 414 | -9/Materials | Lost 3 parts (2n1u) 534 | -9/Materials | Build established: Hauler-Mutant 945 | -9/Materials | Discovered new exit (range 9) 975 | -9/Materials | Entered Mines 1080 | -9/Mines | Discovered new exit (range 16) 1122 | -9/Mines | Destroyed 8 combat bots 1334 | -9/Mines | Entered Materials 1334 | -8/Materials | Evolved 2 slots: Propulsion x2 1512 | -8/Materials | Identified exit to Garrison 1515 | -8/Materials | Entered Garrison 1615 | -8/Garrison | Triggered checkpoint 1671 | -8/Garrison | Lost 8 parts (1p4n1u2w) 1709 | -8/Garrison | Garrison Relay disabled 1847 | -8/Garrison | Triggered checkpoint 1882 | -8/Garrison | Released all parts (4) 1883 | -8/Garrison | Core integrity fell below 50% 1910 | -8/Garrison | Lost 4 parts (1p1n1u1w) 1941 | -8/Garrison | Core integrity fell below 20% 1946 | -8/Garrison | Destroyed by Y-45 Defender with Heavy Assault Rifle Last Messages --------------- 01798_ The unstable cave ceiling collapses. 01798_ Acquired 10 matter. 01804_ The unstable cave ceiling collapses. 01806_ Ion Engine destroyed. Garrison Door activated. 01867_ Lgt. Armor Plating destroyed. 01868_ Minigun destroyed. 01873_ Ion Engine destroyed. 01879_ Lgt. Treads destroyed. 01882_ Released Lgt. Treads. 01882_ Released Minigun. 01882_ Released Targeting Computer. 01882_ Released Cargo Storage Unit. 01886_ The unstable cave ceiling collapses. 01893_ Connecting with Garrison Terminal... 01934_ Slammed into G-47 Trooper. 01940_ Critical hit (Burn: +37). 01943_ Slammed into Y-45 Defender. 01945_ Destabilizing: Core damaged (-11). 01946_ Slammed into Y-45 Defender. Map ----- +----------------------------------------------------+ | ?????????????????????????????????????????????????? | | ????????????????????????###??????????????????????? | | ????########????????????#"#??????????????????????? | | ????# ## #????????#####"#####??????????????????? | | ????# # ########## """""#??????????????????? | | ????# " "#??????????????????? | | ????# ########### "#??????????????????? | | ????#######?# ### " "#??????????????????? | | ????????????# # """ ""#??????????????????? | | ????????????# ### " #??????????????????? | | ????????????### #?# #??????????????????? | | ??############# #?# #??????????????????? | | ??#""""""""""## #?# Y #??????????????????? | | ??#"""!!!!!!"## #?#####g#####??????????????????? | | ??#"" ## #?????# #??????????????????????? | | ??#"! ## #?????# #??????????????????????? | | ??#"! ## #?????# #??????????????????????? | | ??#"! ## #?????# #??????????????????????? | | ??#"! #?????# #??????????????????????? | | ??#"" #?????# #??????????????????????? | | ??#"""!! "## #?????# #??????????????????????? | | ??#""""""""""## #?????# #??????????????????????? | | ??############# #?????# #??????????????????????? | | ??????????????# #?????# #??????????????????????? | | ??????????????# #?##### #??????????????????????? | | ??????????????# #?#""##@#??????????????????????? | | ??????????????# #?#T ##Y#??????????????????????? | | ##########????# #?#" ## #??????????????????????? | | #" ""# ##?### #### ## #??????????????????????? | | ## ### # # ## ## ####???????????????????? | | ^^ [ #???????????????????? | | ^ #???????????????????? | | ##### # # ## ### #### #???????????????????? | | ????#### # # ## #??? #???????????????????? | | ???????####+## [ # # #??? ##??????????????????? | | ??????????#??# ## #???? ???????????????????? | | ?????????????## ## #???? ##??????????????????? | | ?????????????# [![## #??? #??? #?????????????? | | ????# ## ###**%]###+####++## #####?????????? | | ????# !=!=[! #????????? | | ??????# ###### [!][* ????????? | | ??????????????# =[!! ????????? | | ??????????????########+### ## #?????????????? | | ?????????????????????? #?? #???????????????????? | | ???????????????????????#??? ??????????????????? | | ??????????????????????????? ????????????????? | | ???????????????????????????? ???????????????? | | ???????????????????????????? ?????????????? | | ?????????????????????????????## ##????????????? | | ??????????????????????????????? #?????????????? | +----------------------------------------------------+ Best States ------------- Heat Dissipation 31 Energy Generation 10 Energy Capacity 250 Matter Stores 300 Matter Capacity 300 Sight Range 16 Terrain Scan Density 10 Armor Coverage 150 Evasion (%) 50 Targeting Accuracy 5 Recoil Reduction 3 Authchip Count 4 Item Schematics ----------------- None Robot Schematics ------------------ None Fabricated ------------ Nothing Alien Tech Used ----------------- None Achievements -------------- None Challenges ------------ None Game ------ Seed CooledZioniteGenerator Manual? 0 Play Time 00:16:49 Cumulative 27.4 hours Start 2024.05.18 @ 14:13:01 End 2024.05.18 @ 14:27:25 Sessions 1 Manual Loads 0 Difficulty Rogue Special Mode None Game No. 52 Rogue 52 Adventurer 0 Explorer 0 Win Type - Total 0 Types 0/0/0/0/0/0/0/0/0 Lore% 22 Gallery% 31 Achievement% 29 Wizard Run 0 Options --------- Layout 1 ASCII 0 Keyboard 0 Movement Vi Keybinds 0 Fullscreen 2 Font 24/Smallcaps Map View 50x35 Zoom Use 0% Tactical HUD 1 Map Filters NONE Filters NONE Steam 1 RUN: f42d1a8a-4281-4094-8e73-38e4b137841c